Cogmind - Beta 14 @@@ ROGUE MODE // 2024.11.16 @ 18:13:31 Player: Mathewnd Result: Destroyed by G-34 Mercenary with Small Laser Performance ------------- Evolutions (1) 500 Regions Visited (3) 600 Robots Destroyed (9) 45 Value Destroyed (171) 171 Prototype IDs (0) 0 Alien Tech Used (0) 0 Bonus (0) 0 TOTAL SCORE: 1316 Bonus ------- None Cogmind --------- Core Integrity 0/400 Matter 256/300 Energy 100/100 System Corruption 14% Temperature Cool (6) Movement Core (100) Ox1 Location -9/Materials Parts ------- > --- POWER (2) -------- (None) > --- PROPULSION (2) --- (None) > --- UTILITY (3) ------ Small Storage Unit > --- WEAPON (2) ------- (None) > --- INVENTORY (8) ---- Light Nuclear Core Light Angular Momentum Engine Improved Heat Sink Visual Processing Unit Peak State ------------ > --- POWER ------------ Ion Engine Light Nuclear Core > --- PROPULSION ------- Wheel Wheel > --- UTILITY ---------- Small Storage Unit Sensor Array Improved Terrain Scanner > --- WEAPON ----------- Beamcaster High-powered Shotgun > --- INVENTORY -------- Light Angular Momentum Engine Improved Heat Sink Missile Launcher Mining Laser [Rating: 20] Favorites ----------- Power Ion Engine Engine Ion Engine Power Core Light Nuclear Core Propulsion Wheel Wheel Wheel Utility Small Storage Unit Device Sensor Array Storage Small Storage Unit Weapon Assault Rifle Energy Gun Beamcaster Ballistic Gun Assault Rifle Launcher Missile Launcher Special Weapon Mining Laser Build | -11 -10 -10 -9 ------- Run | Yrd Mat Min Mat Slots Evolved 2 | . . . 2 Power 1 | . . . 1 Propulsion . | . . . . Utility 1 | . . . 1 Weapon . | . . . . Parts Attached 13 | 6 . 2 5 Power 2 | 1 . . 1 Engine 1 | 1 . . . Core 1 | . . . 1 Reactor . | . . . . Propulsion 2 | 2 . . . Treads . | . . . . Leg . | . . . . Wheel 2 | 2 . . . Hover . | . . . . Flight . | . . . . Utility 3 | 1 . 1 1 Device 2 | . . 1 1 Storage 1 | 1 . . . Processor . | . . . . Hackware . | . . . . Protection . | . . . . Artifact . | . . . . Weapon 6 | 2 . 1 3 Energy Gun 1 | . . 1 . Energy Cannon . | . . . . Ballistic Gun 3 | 2 . . 1 Ballistic Cannon . | . . . . Launcher 1 | . . . 1 Special Weapon 1 | . . . 1 Impact Weapon . | . . . . Slashing Weapon . | . . . . Piercing Weapon . | . . . . Special Melee Weapon . | . . . . Unidentified Prototypes . | . . . . Parts Lost 9 | . . . 9 Power 1 | . . . 1 Propulsion 2 | . . . 2 Utility 2 | . . . 2 Weapon 4 | . . . 4 Highest Loss Streak 9 | . . . 9 To Critical Strikes 1 | . . . 1 Average Slot Usage (%) 85 | . 85 88 82 Engine 12 | . 14 14 10 Wheel 25 | . 28 28 19 Device 8 | . . 3 20 Storage 13 | . 14 14 11 Energy Gun 9 | . . 11 10 Ballistic Gun 16 | . 28 16 10 Peak Build Rating 20 | 6 6 13 20 Average Rating 11 | 3 6 10 16 On Entrance 6 | . 6 6 13 Naked Turns . | . . . . Heaviest Build 20 | 14 14 18 20 Greatest Support 20 | 20 20 20 20 Greatest Overweight (x) 2 | 2 . . 2 Average Overweight (x) . | . . . . Largest Inventory Capacity 8 | 8 8 8 8 Average Capacity 7 | 6 8 8 8 Most Carried 8 | 3 3 8 7 Average Carried 4 | . 1 6 5 Final Capacity 8 | 8 8 8 8 Final Carried 7 | . 3 7 4 Class Distribution -------------------- 100% | Mutant Dominant Class ---------------- Mutant | -10/Materials Mutant | -10/Mines Mutant | -9/Materials Resources | -11 -10 -10 -9 ----------- Run | Yrd Mat Min Mat Matter Collected 389 | 232 14 109 34 Remotely . | . . . . Salvage Created 202 | . 49 94 59 Parts 12 | . 4 3 5 Haulers Intercepted . | . . . . Recyclers Shooed 1 | . . . 1 Parts Field Recycled . | . . . . Retrieved Matter . | . . . . Parts Self-Destructed . | . . . . Prevented . | . . . . Kills | -11 -10 -10 -9 ------- Run | Yrd Mat Min Mat Combat Hostiles Destroyed 6 | . 3 2 1 Guns 5 | . 3 2 . AOE 1 | . . . 1 Classes Destroyed 4 | . 1 1 2 Builder 2 | . . . 2 Watcher 1 | . . . 1 Swarmer 3 | . 3 . . Grunt 3 | . . 2 1 Best Kill Streak 3 | . 3 1 3 Combat Bots Only 3 | . 3 1 1 Max Kills in Single Turn 2 | . 1 1 2 Gunslinging . | . . . . Exploded 1 | . . . 1 Melee . | . . . . Uniques/NPCs Destroyed . | . . . . Combat | -11 -10 -10 -9 -------- Run | Yrd Mat Min Mat Hostile Shots Fired 113 | . 11 7 95 Missed 29 | . 2 1 26 Damage Taken 1094 | . 75 66 953 Core 426 | . 23 . 403 Absorbed by Shields . | . . . . Core Remaining (%) 95 | 100 . 90 . Volleys Fired 29 | . 5 11 13 Largest 2 | . 2 2 2 Hottest 100 | . 40 95 100 Shots Fired 53 | . 10 22 21 Gun 50 | . 10 22 18 Cannon . | . . . . Launcher 3 | . . . 3 Special . | . . . . Kinetic 34 | . 10 15 9 Thermal 16 | . . 7 9 Explosive 3 | . . . 3 Electromagnetic . | . . . . Robot Hit Streak 8 | . 2 7 8 Robot Miss Streak 3 | . 2 3 3 Penetration Max . | . . . . Secondary Targets 1 | . 1 . . Max Gunslinging Chain 1 | . 1 . . Shots Hit Robots 31 | . 5 15 11 Core Hits 11 | . 3 2 6 Critical Kills . | . . . . Critical Parts Destroyed 1 | . . 1 . Critical Strikes 1 | . . 1 . Destroy 1 | . . 1 . Melee Attacks . | . . . . Impact . | . . . . Slashing . | . . . . Piercing . | . . . . Sneak Attacks . | . . . . Combat Hostiles . | . . . . Follow-up Attacks . | . . . . Damage Inflicted 822 | . 61 210 551 Guns 513 | . 61 210 242 Cannons . | . . . . Explosions 308 | . . . 308 Melee . | . . . . Ramming 1 | . . . 1 Kinetic 369 | . 61 150 158 Thermal 144 | . . 60 84 Explosive 308 | . . . 308 Electromagnetic . | . . . . Impact . | . . . . Slashing . | . . . . Piercing . | . . . . Highest Corruption 14 | . . . 14 Average Corruption 11 | . . . 11 Corruption Purged . | . . . . Corruption Blocked . | . . . . Effects 2 | . . . 2 Misdirections 2 | . . . 2 Overload Shots . | . . . . Overflow Damage . | . . . . Projectiles . | . . . . Explosions . | . . . . Melee . | . . . . Knockbacks . | . . . . Impact . | . . . . Kinetic . | . . . . Secondary . | . . . . Self-Inflicted Damage 46 | . . . 46 Shots 1 | . . . 1 Rammed 1 | . . . 1 Targets Rammed 1 | . . . 1 Kicked . | . . . . Crushed . | . . . . Highest Temperature 299 | . . 201 299 Average Temperature 108 | . . 83 125 Received Heat Transfer 420 | . . 36 384 Effects 2 | . . . 2 Energy Bleed 2 | . . . 2 Siege Activations . | . . . . Robots Corrupted . | . . . . Combat Hostiles . | . . . . Parts Fried . | . . . . Impact Corruptions . | . . . . Robots Melted . | . . . . Combat Hostiles . | . . . . Parts Melted . | . . . . Heat Transferred 259 | . . 111 148 Parts Sabotaged . | . . . . Parts Stolen . | . . . . Parts Stripped . | . . . . Power Chain Reactions . | . . . . Alert | -11 -10 -10 -9 ------- Run | Yrd Mat Min Mat Peak Influence 101 | . 101 71 71 Initial 39 | . . 39 . Average 46 | . 76 45 38 Maximum Alert Level . | . . . . Low Security (%) 100 | 100 100 100 100 Level 1 . | . . . . Level 2 . | . . . . Level 3 . | . . . . Level 4 . | . . . . Level 5 . | . . . . High Security . | . . . . Max Security . | . . . . Squads Dispatched 2 | . . 1 1 Investigation 2 | . . 1 1 Extermination . | . . . . Reinforcement . | . . . . Assault . | . . . . Garrison . | . . . . Intercept . | . . . . Searches Triggered . | . . . . Construction Impeded . | . . . . Haulers Reinforced . | . . . . Active Scanning Responses . | . . . . Cargo Convoy Interrupts . | . . . . Stealth | -11 -10 -10 -9 --------- Run | Yrd Mat Min Mat Distress Signals 2 | . . . 2 Communications Jammed . | . . . . Distress Signals . | . . . . Times Spotted 30 | . 7 4 19 Peak Tracking Total 10 | . 4 2 10 Tactical Retreats . | . . . . Traps | -11 -10 -10 -9 ------- Run | Yrd Mat Min Mat Traps Triggered 1 | . . . 1 Indirectly . | . . . . Trap Hack Attempts . | . . . . Triggered . | . . . . Disarmed . | . . . . Reprogrammed . | . . . . Reused . | . . . . Traps Extracted . | . . . . Installed . | . . . . Triggered . | . . . . Machines | -11 -10 -10 -9 ---------- Run | Yrd Mat Min Mat Machines Disabled . | . . . . Max in Single Turn . | . . . . Machines Repaired . | . . . . Machines Dismantled . | . . . . Machines Sabotaged . | . . . . Overloaded Fab Kills . | . . . . Hacking | -11 -10 -10 -9 --------- Run | Yrd Mat Min Mat Machines Accessed 3 | . 1 1 1 Terminals 2 | . 1 . 1 Fabricators . | . . . . Repair Stations . | . . . . Recycling Units . | . . . . Scanalyzers . | . . . . Garrison Access . | . . . . Total Hacks 7 | . 4 1 2 Successful 5 | . 3 1 1 Failed 2 | . 1 . 1 Catastrophic . | . . . . Database Lockouts . | . . . . Manual . | . . . . Terminals 6 | . 4 . 2 Fabricators . | . . . . Repair Stations . | . . . . Recycling Units . | . . . . Scanalyzers . | . . . . Garrison Access . | . . . . Terminal Hacks 5 | . 3 1 1 Record 3 | . 3 . . Open Door 1 | . . 1 . Locate Traps 1 | . . . 1 Fabricator Hacks . | . . . . Repair Station Hacks . | . . . . Recycling Unit Hacks . | . . . . Scanalyzer . | . . . . Garrison Access Hacks . | . . . . Unauthorized Hacks . | . . . . Terminals . | . . . . Fabricators . | . . . . Repair Stations . | . . . . Recycling Units . | . . . . Scanalyzers . | . . . . Garrison Access . | . . . . Data Cores Recovered 1 | . . . 1 Used . | . . . . Hacking Detections 2 | . 1 . 1 Full Trace Events . | . . . . Feedback Events . | . . . . Feedback Blocked . | . . . . Robot Schematics Acquired . | . . . . Robots Built . | . . . . Authchips . | . . . . Time . | . . . . Total Robot Build Rating . | . . . . Part Schematics Acquired . | . . . . Parts Built . | . . . . Authchips . | . . . . Time . | . . . . Total Part Build Rating . | . . . . Parts Repaired . | . . . . Time . | . . . . Parts Recycled . | . . . . Recycled Matter . | . . . . Retrieved Matter . | . . . . Retrieved Components . | . . . . Parts Scanalyzed . | . . . . Part Schematics Acquired . | . . . . Parts Damaged . | . . . . Bothacking | -11 -10 -10 -9 ------------ Run | Yrd Mat Min Mat Used RIF Installer . | . . . . Robots Hacked . | . . . . Non-combat . | . . . . Combat . | . . . . Robot Hacks Applied . | . . . . Relay Couplers Released . | . . . . Fabnet Peak Effective % . | . . . . Robots Rewired . | . . . . Allies Hacked . | . . . . Hacks Repelled . | . . . . Allies | -11 -10 -10 -9 -------- Run | Yrd Mat Min Mat Total Allies 1 | . . 1 . Largest Group 1 | . . 1 . Highest-Rated Group 31 | . . 31 . Highest-Rated Ally 31 | . . 31 . Total Orders . | . . . . Ally Attacks 10 | . . 10 . Total Damage 148 | . . 148 . Kills . | . . . . Allies Corrupted . | . . . . Allies Melted . | . . . . Intel | -11 -10 -10 -9 ------- Run | Yrd Mat Min Mat Robot Analysis Total . | . . . . Derelict Logs Recovered 1 | . . 1 . Drone Launches . | . . . . Drone Recoveries . | . . . . Exploration | -11 -10 -10 -9 ------------- Run | Yrd Mat Min Mat Turns Passed 1109 | 46 177 562 324 Spaces Moved 950 | 38 199 421 292 Core 16 | 9 . . 7 Treads . | . . . . Legs . | . . . . Wheels 934 | 29 199 421 285 Hover . | . . . . Flight . | . . . . Fastest Speed 50 | 50 80 80 80 Average Speed 80 | 86 80 80 81 Slowest Speed 150 | 150 80 80 150 Overloaded Moves . | . . . . Propulsion Burnouts . | . . . . Robots Hopped . | . . . . Cave-ins Triggered . | . . . . Exploration Rate (%) 37 | 3 42 75 28 Regions Visited 3 Branch Regions 1 Pre-discovered Areas 1 | . . 1 . Known Exits Taken . | . . . . Unknown Exits Taken 3 | 1 1 1 . Scrap Searched 2 | . . 2 . Spaces Dug . | . . . . Terrain Destroyed 36 | . . . 36 Melee . | . . . . Projectile . | . . . . AOE 36 | . . . 36 Terrain Rammed . | . . . . Walls Destroyed . | . . . . Machines Disabled . | . . . . Actions | -11 -10 -10 -9 --------- Run | Yrd Mat Min Mat Total 1239 | 51 206 626 356 Wait 221 | . . 179 42 Move 947 | 37 198 420 292 Hop . | . . . . Pick Up 20 | 7 3 9 1 Fast Attach . | . . . . Attach 13 | 6 . 2 5 Detach 2 | . . 1 1 Swap . | . . . . Drop 6 | 1 . 4 1 Fire 29 | . 5 11 13 Melee . | . . . . Ram 1 | . . . 1 Kick . | . . . . Crush . | . . . . Escape Stasis . | . . . . Rewire . | . . . . Trap . | . . . . Miscellaneous . | . . . . Route ------- -11/Scrapyard -10/Materials (discovered 3 exits: *Mat x2 / *Min) -10/Mines -9/Materials History --------- Turn | Location | Event 28 | -11/Scrapyard | Discovered new exit (range 16) 47 | -11/Scrapyard | Entered Materials 134 | -10/Materials | Discovered new exit (range 13) 189 | -10/Materials | Discovered new exit (range 14) 222 | -10/Materials | Discovered new exit (range 14) 224 | -10/Materials | Entered Mines 227 | -10/Mines | Received a Mining Laser from a helpful Derelict 338 | -10/Mines | Build established: Mutant 360 | -10/Mines | Found a damaged Exp. Sensor Array with a note attached 430 | -10/Mines | Learned location of Zion (-6) 728 | -10/Mines | Discovered new exit (range 5) 734 | -10/Mines | Met a Derelict shopkeep closing up shop 786 | -10/Mines | Entered Materials 786 | -9/Materials | Evolved 2 slots: Power x1, Utility x1 1081 | -9/Materials | System corruption reached 10% 1094 | -9/Materials | Core integrity fell below 50% 1106 | -9/Materials | Core integrity fell below 20% 1110 | -9/Materials | Destroyed by G-34 Mercenary with Small Laser Last Messages --------------- W-16 Scout sends out distress signal. Critical hit (Burn: +37). Beamcaster destroyed. Critical hit (Smash). Hpw. Shotgun destroyed. System corrupted by crushing effect (+3). U-05 Engineer destroyed. Knocked back. U-05 Engineer lays Concrete. U-05 Engineer destroyed. G-34 Mercenary destroyed. K-01 Serf collects debris. Missile Launcher destroyed. Y-45 Defender destroyed. B-36 Bruiser destroyed. K-01 Serf collects debris. The unstable cave ceiling collapses. Mining Laser destroyed. Imp. Terrain Scanner destroyed. K-01 Serf collects debris. Map ----- +----------------------------------------------------+ | # #### #?????????????????????????????????? | | #### # ?? ?????????????????????????????? | | #######+##### #????????????????????#??????#?????? | | # / #?????????????????????????????????? | | # # #??????????????###????????????????? | | # # + ????????????????????????????????? | | # """ """ #### ? ????#?????#??????????????????? | | # """"""""" #?#? ??????????????????????????????? | | #??""""" " #?#?? "???#????????????????????????? | | ??? #???? ????#??????????????????????? | | ??#?#########?????#####???#??????????????????????? | | ?????###########??########???????????????????????? | | ?#???# #?## #?#?????????????????????? | | ?????# = #### """ #???????????????????????? | | ?????# + + """ #?????????????#?????????? | | ##??## #### """ #????????#??????????????? | | ##??# """ !! ## # #???????????????????????? | | #???# """ ! # #####??????##???????????? | | #???# """ # = #???? ??????????????? | | #???# # g% #? ?????????????????? | | =#########/##### #? ? ???????????????? | | # %%! %= g%% #???????????????????? | | # ######## = #???????????????????? | | # % #????#?##### k #???????????????????? | | + #####+#############b ##+##???????????????? | | #% # ## g @%= g ????????? | | # # [[ w g g ????????? | | ## # [[ | ##r aa ????????? | | ? # ## ## #######+## ????????? | | # ## ?###+###???????????????????? | | # ## ????? "?????? ??????????????? | | ################### ??? ? "?" #?????????????????? | | ???????#??????????# ??#??? ? ???????????????????? | | ??????????????????# ?????""?????????????????????? | | ??????????????????#?? ????""?????????????????????? | | ???????#??????????# ?????????????????????????????? | | ????????#?????????????????"??????????????????????? | | ?????????????????????????????????????????????????? | | ?????????????????????????????????????????????????? | | ?????????????????????????????????????????????????? | | ?????????????????????????????????????????????????? | | ?????????????????????????????????????????????????? | | ?????????????????????????????????????????????????? | | ?????????????????????????????????????????????????? | | ?????????????????????????????????????????????????? | | ?????????????????????????????????????????????????? | | ?????????????????????????????????????????????????? | | ?????????????????????????????????????????????????? | | ?????????????????????????????????????????????????? | | ?????????????????????????????????????????????????? | +----------------------------------------------------+ Best States ------------- Heat Dissipation 28 Energy Generation 19 Energy Capacity 310 Matter Stores 300 Matter Capacity 300 Sight Range 16 Robot Scan Range 14 Terrain Scan Range 16 Terrain Scan Density 10 Evasion (%) 44 Item Schematics ----------------- None Robot Schematics ------------------ None Fabricated ------------ Nothing Alien Tech Used ----------------- None Achievements -------------- System Compromised Challenges ------------ None Game ------ Seed LayeredVoltaicTube Manual? 0 Play Time 00:20:30 Cumulative 2.6 hours Start 2024.11.16 @ 17:50:16 End 2024.11.16 @ 18:13:31 Sessions 1 Manual Loads 0 Difficulty Rogue Special Mode None Game No. 3 Rogue 3 Adventurer 0 Explorer 0 Win Type - Total 0 Types 0/0/0/0/0/0/0/0/0 Lore% 2 Gallery% 4 Achievement% 4 Wizard Run 0 Options --------- Layout 1 ASCII 0 Keyboard 0 Movement Mouse Keybinds 0 Fullscreen 1 Font 24/Smallcaps Map View 50x35 Zoom Use 0% Tactical HUD 0 Map Filters NONE Filters NONE Steam 1 RUN: 28e0d2d5-5dcc-4465-985d-740af2fd3add